bitfinex-derivatives/quotes_ETHF0:USTF0_20250317
["timestamp","ask_amount","ask_price","bid_price","bid_amount"]
[1742178585490,3.2078,1911.7,1911.6,1.04632]
[1742178585795,3.2078,1911.7,1911.6,1.13732]
[1742178585983,7.05908,1911.7,1911.6,0.091]
[1742178586295,10.19881,1911.7,1911.6,1.13732]
[1742178586495,11.24508,1911.7,1911.6,0.091]
[1742178586991,1.04632,1911.6,1911.5,40.80785608]
[1742178587196,3.85133,1911.6,1911.5,40.80785608]
[1742178587394,10.26693,1911.6,1911.5,40.80785608]
[1742178588687,9.22061,1911.6,1911.5,40.80785608]
[1742178590290,15.09061,1911.6,1911.5,40.80785608]
[1742178590598,15.09061,1911.6,1911.5,41.85423608]
[1742178590797,15.09061,1911.6,1911.5,40.80785608]
[1742178591294,15.01505288,1911.6,1911.5,40.80785608]
[1742178591496,15.01505288,1911.6,1911.5,41.17424712]
[1742178591998,15.01505288,1911.6,1911.5,40.80785608]
[1742178592198,15.01505288,1911.6,1911.5,41.1742765]
[1742178592899,15.01505288,1911.6,1911.5,41.93399083]
[1742178593201,15.01505288,1911.6,1911.5,42.5227764]
[1742178593894,16.06137288,1911.6,1911.5,42.5227764]
[1742178594594,16.06137288,1911.6,1911.5,42.52361063]
[1742178595200,16.06137288,1911.6,1911.5,43.26131514]
[1742178595597,16.06137288,1911.6,1911.5,42.52361063]
[1742178595903,10.66756288,1911.6,1911.5,2.35299759]
[1742178596104,8.16756288,1911.6,1911.5,0.76074652]
[1742178596294,8.16756288,1911.6,1911.5,1.03868897]
[1742178596598,1.04642,1911.5,1911.2,1.39994639]
[1742178596798,3.2078,1911.3,1911.1,1.83037414]
[1742178596993,5.87,1911.2,1911.1,1.04657]
[1742178597190,5.87,1911.2,1911.1,3.30713315]
[1742178597391,5.87,1911.2,1911.1,44.10713315]
[1742178597592,5.87,1911.2,1911.1,45.62632925]
[1742178597797,4.69206728,1911.2,1911.1,45.62632925]
[1742178597990,3.2078,1911.3,1911.2,1.04654]
[1742178598196,3.2078,1911.3,1911.2,3.30710315]
[1742178598399,2.26557729,1911.3,1911.2,3.66531025]
[1742178598602,2.26557729,1911.3,1911.2,44.46531025]
[1742178598801,2.26557729,1911.3,1911.2,45.6343681]
[1742178598999,2.26557729,1911.3,1911.2,44.37401699]
[1742178599196,2.26557729,1911.3,1911.2,44.73242304]
[1742178600100,3.2078,1911.5,1911.4,1.04643]
[1742178600297,3.2078,1911.5,1911.4,2.05471089]
[1742178601100,4.25418,1911.5,1911.4,1.65320069]
[1742178601306,4.25418,1911.5,1911.4,2.05471089]
[1742178601504,4.25418,1911.5,1911.4,1.00828089]
[1742178601908,3.2078,1911.5,1911.4,2.05471089]
[1742178602205,7.2958,1911.5,1911.4,3.22176418]
[1742178602401,3.2078,1911.5,1911.4,3.22176418]
[1742178602793,3.2078,1911.5,1911.4,2.41368486]
[1742178603396,3.2078,1911.5,1911.4,4.91368486]
[1742178603601,33.10585608,1911.8,1911.7,1.04627]
[1742178603899,29.02685608,1911.8,1911.7,2.05455089]
[1742178604103,29.02685608,1911.8,1911.7,42.85455089]
[1742178604315,7.2848,1912.2,1912.1,1.04605]
[1742178604503,7.2848,1912.2,1912.1,2.05433089]
[1742178605510,7.2848,1912.2,1912.1,2.70045255]
[1742178605910,7.2848,1912.2,1912.1,43.50045255]
[1742178606114,4.25379,1912.2,1912.1,41.60730673]
[1742178607114,4.25379,1912.2,1912.1,41.92407617]
[1742178607500,6.75379,1912.2,1912.1,41.92407617]
[1742178608508,6.75379,1912.2,1912.1,42.50011334]
[1742178608708,12.62379,1912.2,1912.1,41.92407617]
[1742178609013,12.62379,1912.2,1912.1,42.62491661]
[1742178609406,12.62379,1912.2,1912.1,43.20096512]
[1742178609603,12.62379,1912.2,1912.1,42.62491661]
[1742178610115,11.43659,1912.2,1912.1,43.20098827]
[1742178610411,11.43659,1912.2,1912.1,43.20093332]
[1742178611113,15.47459,1912.2,1912.1,43.20093332]
[1742178612207,17.97459,1912.2,1912.1,43.20093332]
[1742178612409,17.97459,1912.2,1912.1,1.82491661]
[1742178612610,17.97459,1912.2,1912.1,0.73711661]
[1742178612811,15.47459,1912.2,1912.1,0.73711661]
[1742178613314,15.47459,1912.2,1912.1,41.53711661]
[1742178613717,11.43659,1912.2,1912.1,41.50084044]
[1742178613905,15.45759,1912.2,1912.1,41.50084044]
[1742178614417,17.95359,1912.2,1912.1,41.50084044]
[1742178614916,17.95359,1912.2,1912.1,40.8]
[1742178615120,15.45359,1912.2,1912.1,40.8]
[1742178616017,17.95359,1912.2,1912.1,40.8]
[1742178616206,15.45359,1912.2,1912.1,40.8]
[1742178616611,17.95359,1912.2,1912.1,40.8]
[1742178617316,1.04605,1912.1,1912.0,6.08e-06]
[1742178617521,1.04638,1911.5,1911.4,16.55147282]
[1742178617722,14.12518,1911.5,1911.4,17.12837206]
[1742178618413,14.12018,1911.5,1911.4,58.0298176]
[1742178619925,14.12018,1911.5,1911.4,41.47834478]
[1742178620319,13.0738,1911.5,1911.4,41.47834478]
[1742178620527,13.0738,1911.5,1911.4,43.09723151]
[1742178620718,13.0738,1911.5,1911.4,42.05080151]
[1742178620914,9.0778,1911.5,1911.4,42.05080151]
[1742178621120,14.4651,1911.5,1911.4,42.05080151]
[1742178621626,14.4651,1911.5,1911.4,41.47834478]
[1742178621825,15.51148,1911.5,1911.4,41.47834478]
[1742178622218,14.4651,1911.5,1911.4,41.47834478]
[1742178622418,14.4651,1911.5,1911.4,42.52477478]
[1742178622627,10.4781,1911.5,1911.4,41.47834478]
[1742178622826,14.4551,1911.5,1911.4,41.47834478]
[1742178623126,14.4551,1911.5,1911.4,42.52477478]
[1742178623323,11.2473,1911.5,1911.4,43.0972023]
[1742178623527,11.2433,1911.5,1911.4,43.1895023]
[1742178623919,11.2433,1911.5,1911.4,42.52477478]
[1742178624424,14.4511,1911.5,1911.4,42.52477478]
[1742178624626,7.2703,1911.5,1911.4,42.52477478]
[1742178624823,32.2188,1911.7,1911.6,1.04632]
[1742178625126,29.011,1911.7,1911.6,1.61862033]
[1742178625326,29.011,1911.7,1911.6,4.11862033]
[1742178625623,6.1742,1911.9,1911.6,4.11862033]
[1742178625624,13.343,1911.9,1911.8,1.04621]
[1742178625828,3.2078,1911.9,1911.8,1.6184263]
[1742178626128,3.96,1912.1,1912.0,1.04607]
[1742178626320,5.3659,1912.1,1912.0,41.84607]
[1742178627022,6.41195,1912.1,1912.0,40.8]
[1742178629425,5.3659,1912.1,1912.0,40.8]
[1742178629924,5.3489,1912.1,1912.0,41.8461]
[1742178630326,5.3479,1912.1,1912.0,40.8]
[1742178630826,6.39395,1912.1,1912.0,40.8]
[1742178631329,11.17555,1912.1,1912.0,40.8]
[1742178633035,10.1185,1912.1,1912.0,40.8]
[1742178633530,11.16455,1912.1,1912.0,40.8]
[1742178633923,10.1185,1912.1,1912.0,40.8]
[1742178634123,11.15855,1912.1,1912.0,40.8]
[1742178637131,10.1125,1912.1,1912.0,40.8]
[1742178637634,11.15855,1912.1,1912.0,40.8]
[1742178642341,7.23355,1912.1,1912.0,40.8]
[1742178642543,11.11155,1912.1,1912.0,40.8]
[1742178643647,1.04638,1911.5,1911.4,0.7007]
[1742178643840,7.0818,1911.5,1911.4,0.7007]
[1742178644041,8.12818,1911.5,1911.4,0.7007]
[1742178644256,9.54908,1911.5,1911.3,0.10135608]
[1742178644544,9.54908,1911.5,1911.4,40.8]
[1742178646333,14.33068,1911.5,1911.4,40.8]
[1742178648844,16.83068,1911.5,1911.4,40.8]
[1742178649140,1.04643,1911.4,1911.3,0.00785608]
[1742178649338,1.04673,1910.9,1910.6,0.6578]
[1742178649542,3.2078,1910.7,1910.6,0.6578]
[1742178650046,3.2078,1910.7,1910.6,40.8]
[1742178650248,3.2078,1910.7,1910.6,41.84687]
[1742178650633,3.2078,1910.7,1910.6,40.8]
[1742178650838,3.2078,1910.7,1910.6,41.84687]
[1742178651249,3.2078,1910.7,1910.6,40.8]
[1742178651447,7.9894,1910.7,1910.6,40.8]
[1742178651645,12.89022,1910.7,1910.6,40.8]
[1742178652550,14.22082,1910.7,1910.6,40.8]
[1742178655949,10.36682,1910.7,1910.6,40.8]
[1742178656144,14.21382,1910.7,1910.6,40.8]
[1742178658150,10.36682,1910.7,1910.6,40.8]
[1742178658349,14.21382,1910.7,1910.6,40.8]
[1742178658552,13.167,1910.7,1910.6,40.8]
[1742178658752,14.21382,1910.7,1910.6,40.8]
[1742178659144,9.32,1910.7,1910.6,40.8]
[1742178659342,7.9894,1910.7,1910.6,40.9023]
[1742178659547,11.8314,1910.7,1910.6,40.9023]
[1742178659756,13.2031,1910.7,1910.6,40.8]
[1742178659954,14.24992,1910.7,1910.6,40.8]
[1742178662455,13.2031,1910.7,1910.6,40.8]
[1742178663145,9.3531,1910.7,1910.6,41.84687]
[1742178663345,13.1931,1910.7,1910.6,41.94917]
[1742178664058,11.8294,1910.7,1910.6,41.94917]
[1742178664249,4.7816,1910.7,1910.6,41.94917]
[1742178664447,7.9894,1910.7,1910.6,41.94917]
[1742178664647,11.8224,1910.7,1910.6,41.94917]
[1742178664847,8.6146,1910.7,1910.6,41.94917]
[1742178665049,13.2367,1910.7,1910.6,41.94917]
[1742178666057,8.6146,1910.7,1910.6,41.94917]
[1742178667049,10.0289,1910.7,1910.6,41.94917]
[1742178668157,13.2367,1910.7,1910.6,40.9023]
[1742178668358,14.28352,1910.7,1910.6,40.9023]
[1742178668758,13.2367,1910.7,1910.6,40.9023]
[1742178669266,14.28352,1910.7,1910.6,40.8]
[1742178670357,13.2367,1910.7,1910.6,40.8]
[1742178670658,14.28352,1910.7,1910.6,40.8]
[1742178671251,13.2367,1910.7,1910.6,40.8]
[1742178671556,14.28352,1910.7,1910.6,40.8]
[1742178671761,13.2367,1910.7,1910.6,40.8]
[1742178671959,14.28352,1910.7,1910.6,40.8]
[1742178677564,13.2367,1910.7,1910.6,40.8]
[1742178677961,13.2367,1910.7,1910.6,40.9043]
[1742178678162,13.2367,1910.7,1910.6,41.95117]
[1742178678362,13.2367,1910.7,1910.6,40.9043]
[1742178678557,13.2367,1910.7,1910.6,41.95117]
[1742178678756,13.2367,1910.7,1910.6,40.9043]
[1742178680963,13.2367,1910.7,1910.6,41.95117]
[1742178681164,13.2367,1910.7,1910.6,40.9043]
[1742178681971,14.28352,1910.7,1910.6,40.8]
[1742178682168,13.2367,1910.7,1910.6,40.8]
[1742178683371,13.2367,1910.7,1910.6,41.84687]
[1742178683675,13.2367,1910.7,1910.6,40.9048]
[1742178686275,13.2367,1910.7,1910.6,40.8]
[1742178686777,14.28352,1910.7,1910.6,40.8]
[1742178688871,14.96342,1910.7,1910.6,40.8]
[1742178691078,17.46342,1910.7,1910.6,40.8]
[1742178691473,18.4397865,1910.7,1910.6,40.8]
[1742178691790,1.04687,1910.6,1910.5,0.00785608]
[1742178691976,3.15427,1910.6,1910.5,0.00785608]
[1742178692283,5.65427,1910.6,1910.5,0.00785608]
[1742178692773,5.65427,1910.6,1910.5,40.80785608]
[1742178693775,10.43587,1910.6,1910.5,40.80785608]
[1742178693976,1.04716,1910.1,1909.9,0.7032]
[1742178694182,8.3436,1910.0,1909.9,0.7032]
[1742178695080,8.3436,1910.0,1909.9,41.5032]
[1742178696476,8.3436,1910.0,1909.9,41.6073]
[1742178698785,8.3276,1910.0,1909.9,41.6073]
[1742178699990,9.3748,1910.0,1909.9,41.6073]
[1742178700188,8.3276,1910.0,1909.9,41.6073]
[1742178700491,8.3276,1910.0,1909.9,41.5032]
[1742178701482,9.3748,1910.0,1909.9,41.5032]
[1742178702085,9.3748,1910.0,1909.9,40.8]
[1742178703287,10.337,1910.0,1909.9,40.8]
[1742178704787,15.1186,1910.0,1909.9,40.8]
[1742178705686,17.6186,1910.0,1909.9,40.4]
[1742178705895,11.4056,1910.0,1909.9,40.4]
[1742178706086,15.0996,1910.0,1909.9,40.4]
[1742178706694,14.1374,1910.0,1909.9,40.4]
[1742178708391,13.0832,1910.0,1909.9,40.4]
[1742178708893,14.1304,1910.0,1909.9,40.4]
[1742178711594,13.0772,1910.0,1909.9,40.4]
[1742178711783,13.0772,1910.0,1909.9,40.5036]
[1742178712387,14.1244,1910.0,1909.9,40.5036]
[1742178712796,13.0772,1910.0,1909.9,40.5036]
[1742178713191,43.1664,1910.0,1909.9,40.5036]
[1742178713593,42.1192,1910.0,1909.9,40.5036]
[1742178713795,43.1664,1910.0,1909.9,40.5036]
[1742178714304,43.1664,1910.0,1909.9,40.4]
[1742178726806,39.4854,1910.0,1909.9,40.4]
[1742178727002,43.1174,1910.0,1909.9,40.4]
[1742178730405,44.09480896,1910.0,1909.9,40.4]
[1742178730596,43.1174,1910.0,1909.9,40.4]
[1742178731207,44.09493563,1910.0,1909.9,40.4]
[1742178732108,43.1174,1910.0,1909.9,40.4]
[1742178736409,43.0884,1910.0,1909.9,40.4]
[1742178737716,43.0854,1910.0,1909.9,40.4]
[1742178740817,39.4854,1910.0,1909.9,40.4]
[1742178741018,39.4854,1910.0,1909.9,41.9962]
[1742178741019,35.2304,1910.0,1909.9,41.9962]
[1742178741210,37.4136,1910.0,1909.9,43.04345]
[1742178742113,37.4156,1910.0,1909.9,43.04345]
[1742178742621,38.4628,1910.0,1909.9,41.9962]
[1742178743319,37.4156,1910.0,1909.9,43.04345]
[1742178744009,37.4156,1910.0,1909.9,45.54345]
[1742178744519,37.4156,1910.0,1909.9,43.04345]
[1742178745418,38.4628,1910.0,1909.9,41.9962]
[1742178745712,33.6812,1910.0,1909.9,41.9962]
[1742178746105,35.0809,1910.0,1909.9,41.9962]
[1742178746320,38.2887,1910.0,1909.9,41.9962]
[1742178747021,38.2887,1910.0,1909.9,41.8199]
[1742178748623,37.2415,1910.0,1909.9,41.8199]
[1742178749311,38.2887,1910.0,1909.9,40.4]
[1742178751218,1.04753,1909.4,1909.3,1.3764]
[1742178751423,11.5724,1909.4,1909.3,1.3764]
[1742178751723,11.5724,1909.4,1909.0,2.64275]
[1742178752023,1.3722,1909.3,1909.2,1.3764]
[1742178752225,4.58,1909.3,1909.2,42.1764]
[1742178753922,1.3722,1909.3,1909.2,42.1764]
[1742178754528,5.62758,1909.3,1909.2,42.1764]
[1742178754726,4.58,1909.3,1909.2,42.1764]
[1742178754928,5.62758,1909.3,1909.2,40.8]
[1742178755118,4.58,1909.3,1909.2,40.8]
[1742178755314,5.62758,1909.3,1909.2,40.8]
[1742178755524,4.58,1909.3,1909.2,40.8]
[1742178755830,4.58,1909.3,1909.2,42.2736]
[1742178756218,4.58,1909.3,1909.2,42.4498]
[1742178756620,4.9652,1909.3,1909.2,42.4498]
[1742178756819,4.78945608,1909.4,1909.2,43.49744]
[1742178757028,3.593,1909.3,1909.2,43.32124]
[1742178757530,1.41435608,1909.4,1909.3,1.04758]
[1742178757731,3.60085608,1909.4,1909.3,1.04758]
[1742178757928,6.8008,1909.5,1909.4,1.04753]
[1742178758122,6.8008,1909.5,1909.3,2.5]
[1742178758123,1.04753,1909.4,1909.2,1.4736]
[1742178758431,9.25481,1909.5,1909.3,1.04757]
[1742178758631,1.4065,1909.4,1909.3,1.04757]
[1742178758824,7.84831,1909.5,1909.4,1.04753]
[1742178759024,7.85616608,1909.5,1909.3,1.04755]
[1742178759224,7.85616608,1909.5,1909.4,40.8]
[1742178759433,7.85616608,1909.5,1909.4,41.84753]
[1742178759729,4.64836608,1909.5,1909.4,41.84753]
[1742178760134,0.00785608,1909.5,1909.4,41.84753]
[1742178760333,3.59685608,1909.5,1909.4,41.84753]
[1742178760534,4.64432608,1909.5,1909.4,40.8]
[1742178760737,9.29762608,1909.5,1909.4,40.8]
[1742178761929,6.08982608,1909.5,1909.4,40.8]
[1742178763726,5.04235608,1909.5,1909.4,40.8]
[1742178763926,8.24715608,1909.5,1909.4,41.84753]
[1742178764125,5.03935608,1909.5,1909.4,41.84753]
[1742178764428,3.59385608,1909.5,1909.4,41.84753]
[1742178764929,0.00785608,1909.5,1909.4,44.34753]
[1742178765730,0.00785608,1909.5,1909.4,40.8]
[1742178766029,1.51335608,1909.5,1909.4,41.84753]
[1742178767636,1.51335608,1909.5,1909.4,44.34753]
[1742178768036,1.51335608,1909.5,1909.4,41.84753]
[1742178770439,1.51335608,1909.5,1909.4,42.22843]
[1742178771640,1.51335608,1909.5,1909.4,41.84753]
[1742178772642,1.51335608,1909.5,1909.4,42.22833]
[1742178772841,4.72115608,1909.5,1909.4,42.22833]
[1742178773036,5.76862608,1909.5,1909.4,41.84753]
[1742178773340,4.72115608,1909.5,1909.4,41.84753]
[1742178773539,5.76862608,1909.5,1909.4,40.8]
[1742178773736,4.72115608,1909.5,1909.4,41.84753]
[1742178774936,4.72115608,1909.5,1909.4,40.8]
[1742178775138,4.72115608,1909.5,1909.4,41.84753]
[1742178775836,1.51335608,1909.5,1909.4,41.84753]
[1742178776439,4.72115608,1909.5,1909.4,41.84753]
[1742178777038,4.72115608,1909.5,1909.4,40.8]
[1742178777437,5.76862608,1909.5,1909.4,40.8]
[1742178779239,10.55022608,1909.5,1909.4,40.8]
[1742178779447,1.04764,1909.2,1909.1,0.00785608]
[1742178779641,7.82144,1909.2,1909.1,0.00785608]
[1742178779945,7.82144,1909.2,1909.1,40.80785608]
[1742178780450,6.7738,1909.2,1909.1,40.80785608]
[1742178780744,6.7738,1909.2,1909.1,41.85554608]
[1742178780935,8.1947,1909.2,1909.1,41.85554608]
[1742178781546,8.22279335,1909.2,1909.1,41.85554608]
[1742178782349,5.01499335,1909.2,1909.1,41.85554608]
[1742178782644,5.01499335,1909.2,1909.1,42.23534608]
[1742178785649,1.44999335,1909.2,1909.1,42.23534608]
[1742178785946,2.49763335,1909.2,1909.1,40.80785608]
[1742178786247,5.70543335,1909.2,1909.1,40.80785608]
[1742178786444,7.26433335,1909.2,1909.1,40.80785608]
[1742178786647,8.75153335,1909.2,1909.1,40.80785608]
[1742178788145,7.70389335,1909.2,1909.1,40.80785608]
[1742178788345,8.75153335,1909.2,1909.1,40.80785608]
[1742178788550,7.70389335,1909.2,1909.1,40.80785608]
[1742178788847,13.53313335,1909.2,1909.1,40.80785608]
[1742178799352,13.90391506,1909.2,1909.1,40.80785608]
[1742178799756,13.53313335,1909.2,1909.1,40.80785608]
[1742178800955,12.48549335,1909.2,1909.1,40.80785608]
[1742178801550,13.53313335,1909.2,1909.1,40.80785608]
[1742178804445,13.53313335,1909.2,1909.1,0.00785608]
[1742178804446,14.50938975,1909.2,1909.1,0.00785608]
[1742178804651,1.04786,1908.8,1908.6,1.552]
[1742178804853,7.77771,1908.7,1908.6,1.552]
[1742178805048,8.2576,1908.7,1908.4,1.4807]
[1742178805256,3.2078,1908.5,1908.4,1.4807]
[1742178805456,3.2078,1908.5,1908.4,42.2807]
[1742178805654,4.28391335,1908.5,1908.4,42.2807]
[1742178806249,4.28391335,1908.5,1908.4,40.8]
[1742178807963,5.72991335,1908.5,1908.4,40.8]
[1742178808167,10.51151335,1908.5,1908.4,40.8]
[1742178809254,1.04808,1908.4,1908.3,0.00785608]
[1742178809463,10.89768,1908.4,1908.3,0.00785608]
[1742178809667,10.92577335,1908.4,1908.3,40.80785608]
[1742178813658,1.0483,1908.0,1907.9,1.4708]
[1742178813863,7.7691,1908.0,1907.9,1.4708]
[1742178814553,7.7691,1908.0,1907.9,42.2708]
[1742178814760,7.79719335,1908.0,1907.9,42.2708]
[1742178815671,6.74889335,1908.0,1907.9,42.2708]
[1742178815862,7.79719335,1908.0,1907.9,42.2708]
[1742178818761,6.74889335,1908.0,1907.9,42.2708]
[1742178819162,12.57879335,1908.0,1907.9,42.2708]
[1742178819469,14.01829335,1908.0,1907.9,42.2708]
[1742178823966,8.01749335,1908.0,1907.9,42.2708]
[1742178824168,11.51249335,1908.0,1907.9,42.2708]
[1742178824472,11.51449335,1908.0,1907.9,42.7048]
[1742178824672,8.30669335,1908.0,1907.9,42.7048]
[1742178824875,4.57239335,1908.0,1907.9,42.7048]
[1742178825070,7.78019335,1908.0,1907.9,42.7048]
[1742178827584,1.04825,1908.1,1907.9,43.75311]
[1742178827881,1.04824,1908.1,1908.0,0.4343]
[1742178828081,4.54024,1908.1,1908.0,0.4343]
[1742178828276,4.54024,1908.1,1908.0,1.4826]
[1742178828477,4.54024,1908.1,1908.0,42.2826]
[1742178829074,4.54024,1908.1,1908.0,41.2343]
[1742178829280,6.08724,1908.1,1908.0,41.2343]
[1742178831883,5.039,1908.1,1908.0,41.2343]
[1742178832090,6.08724,1908.1,1908.0,41.2343]
[1742178832581,6.08724,1908.1,1908.0,40.8]
[1742178833081,1.0483,1908.0,1907.8,0.00523736]
[1742178833385,33.32615,1907.9,1907.8,0.00523736]
[1742178833691,32.2778,1907.9,1907.8,40.80523736]
[1742178834582,33.7467,1907.9,1907.8,40.80523736]
[1742178835182,34.79505,1907.9,1907.8,40.80523736]
[1742178835487,33.7467,1907.9,1907.8,40.80523736]
[1742178835885,34.79505,1907.9,1907.8,40.80523736]
[1742178836186,33.7467,1907.9,1907.8,40.80523736]
[1742178836491,29.07,1907.9,1907.8,42.28834736]
[1742178837383,29.07,1907.9,1907.8,42.97239606]
[1742178837582,29.07,1907.9,1907.8,45.47239606]
[1742178838589,29.07,1907.9,1907.8,42.97239606]
[1742178838984,29.07,1907.9,1907.8,45.47239606]
[1742178839183,29.07,1907.9,1907.8,42.97239606]
[1742178840686,29.07,1907.9,1907.8,45.47239606]
[1742178841179,29.07,1907.9,1907.8,42.97239606]
[1742178841690,30.5987,1907.9,1907.8,42.97239606]
[1742178841987,29.07,1907.9,1907.8,42.97239606]
[1742178842193,3.496,1908.0,1907.9,1.04835]
[1742178842398,3.496,1908.0,1907.9,1.48315]
[1742178843094,3.496,1908.0,1907.9,42.28315]
[1742178847594,3.496,1908.0,1907.9,41.84835]
[1742178848095,4.9398,1908.0,1907.9,41.84835]
[1742178849584,5.9881,1908.0,1907.9,40.8]
[1742178849888,4.9398,1908.0,1907.9,41.84835]
[1742178850496,4.9218,1908.0,1907.9,41.84835]
[1742178851193,4.9218,1908.0,1907.9,42.31695]
[1742178851797,4.9218,1908.0,1907.9,41.84835]
[1742178859498,4.9088,1908.0,1907.9,41.84835]
[1742178862907,1.4438,1908.0,1907.9,41.84835]
[1742178867616,1.4438,1908.0,1907.9,47.55615]
[1742178867808,1.5507,1908.4,1908.3,1.04813]
[1742178868123,0.00785608,1908.5,1908.4,1.04808]
[1742178868511,1.5475,1908.7,1908.6,1.04797]
[1742178868815,37.2564,1908.9,1908.8,1.04786]
[1742178869209,33.7944,1908.9,1908.8,1.04786]
[1742178869415,34.0476,1908.9,1908.8,1.04786]
[1742178870616,34.0476,1908.9,1908.8,2.48076]
[1742178870817,30.5866,1908.9,1908.8,2.48076]
[1742178871509,29.068,1908.9,1908.8,2.48076]
[1742178872820,30.6082,1908.9,1908.8,2.48076]
[1742178874216,30.6082,1908.9,1908.8,1.04786]
[1742178874422,32.1718,1908.9,1908.8,1.04786]
[1742178875520,30.6082,1908.9,1908.8,1.04786]
[1742178878824,1.5402,1908.9,1908.8,1.04786]
[1742178879322,0.00785608,1909.0,1908.9,1.0478]
[1742178879525,0.00785608,1909.0,1908.9,2.459]
[1742178879725,0.00785608,1909.0,1908.9,3.9212]
[1742178880027,0.00785608,1909.0,1908.9,44.7212]
[1742178891936,6.0706,1909.4,1909.3,1.04758]
[1742178892132,9.5106,1909.4,1909.3,1.04758]
[1742178892534,9.5106,1909.4,1909.3,41.84758]
[1742178892736,2.8628,1909.4,1909.3,41.84758]
[1742178892939,9.5106,1909.4,1909.3,41.84758]
[1742178895339,10.9683,1909.4,1909.3,41.84758]
[1742178901150,12.01583,1909.4,1909.3,40.8]
[1742178901353,18.2499,1909.4,1908.8,0.00785608]
[1742178901559,3.2078,1908.9,1908.8,1.05571608]
[1742178902150,4.6563,1908.9,1908.8,1.05571608]
[1742178902356,4.6563,1908.9,1908.8,41.85571608]
[1742178902652,1.4485,1908.9,1908.8,41.85571608]
[1742178904458,5.7041,1908.9,1908.8,40.80785608]
[1742178904649,4.6563,1908.9,1908.8,41.85571608]
[1742178910567,4.6563,1908.9,1908.8,40.80785608]
[1742178910765,4.6563,1908.9,1908.8,41.85571608]
[1742178911065,4.6563,1908.9,1908.8,40.80785608]
[1742178911466,4.6563,1908.9,1908.8,41.85571608]
[1742178911659,5.7041,1908.9,1908.8,40.80785608]
[1742178913764,4.6563,1908.9,1908.8,40.80785608]
[1742178914555,5.7041,1908.9,1908.8,40.80785608]
[1742178914760,8.2041,1908.9,1908.8,40.80785608]
[1742178915261,5.7041,1908.9,1908.8,40.80785608]
[1742178916368,8.2041,1908.9,1908.8,40.80785608]
[1742178916768,9.18392144,1908.9,1908.8,40.80785608]
[1742178916974,9.88557257,1908.9,1908.8,40.80785608]
[1742178917273,10.06412016,1908.9,1908.8,40.80785608]
[1742178917670,9.97484572,1908.9,1908.8,40.80785608]
[1742178918766,14.84572103,1908.9,1908.8,40.80785608]
[1742178919172,12.34572103,1908.9,1908.8,40.80785608]
[1742178919371,14.84571895,1908.9,1908.8,40.80785608]
[1742178919671,14.75644572,1908.9,1908.8,40.80785608]
[1742178920468,14.84571973,1908.9,1908.8,40.80785608]
[1742178921175,13.16424716,1908.9,1908.8,40.80785608]
[1742178921568,9.52717315,1908.9,1908.8,40.80785608]
[1742178921772,14.01597315,1908.9,1908.8,40.80785608]
[1742178921968,14.99544459,1908.9,1908.8,40.80785608]
[1742178922877,14.01597315,1908.9,1908.8,40.80785608]
[1742178923577,12.96817315,1908.9,1908.8,40.80785608]
[1742178924170,14.01597315,1908.9,1908.8,42.28545608]
[1742178924379,12.96817315,1908.9,1908.8,42.28545608]
[1742178927980,14.01597315,1908.9,1908.8,42.28545608]
[1742178928882,14.01597315,1908.9,1908.8,40.80785608]
[1742178934970,12.96817315,1908.9,1908.8,40.80785608]
[1742178935284,14.01597315,1908.9,1908.8,40.80785608]
[1742178936487,12.96817315,1908.9,1908.8,40.80785608]
[1742178936689,14.01597315,1908.9,1908.8,40.80785608]
[1742178937482,16.51597315,1908.9,1908.8,40.80785608]
[1742178937682,18.17705517,1908.9,1908.4,2.57236]
[1742178937878,3.2078,1908.7,1908.4,2.57235]
[1742178938079,5.95817,1908.6,1908.5,1.5243]
[1742178938887,5.95817,1908.6,1908.5,42.3243]
[1742178942982,8.87467,1908.6,1908.5,42.3243]
[1742178946798,13.65627,1908.6,1908.5,42.3243]
[1742178950298,12.6083,1908.6,1908.5,42.3243]
[1742178950499,12.17907,1908.6,1908.5,42.3243]
[1742178951092,11.1311,1908.6,1908.5,42.3243]
[1742178951390,12.17907,1908.6,1908.5,42.3243]
[1742178951594,6.2518,1908.6,1908.5,43.37232]
[1742178951789,8.2216,1908.6,1908.5,43.37232]
[1742178952102,8.2216,1908.6,1908.5,44.38812]
[1742178952402,4.7816,1908.6,1908.5,44.38812]
[1742178952592,8.2216,1908.6,1908.5,44.38812]
[1742178955196,3.44,1908.6,1908.5,44.38812]
[1742178956792,4.48797,1908.6,1908.5,43.3401]
[1742178956997,5.97227,1908.6,1908.5,43.3401]
[1742178957496,5.97227,1908.6,1908.5,42.3243]
[1742178958805,4.9243,1908.6,1908.5,43.37232]
[1742178959901,5.97227,1908.6,1908.5,42.3243]
[1742178960400,4.9243,1908.6,1908.5,42.3243]
[1742178960600,5.97227,1908.6,1908.5,42.3243]
[1742178960802,4.9243,1908.6,1908.5,43.37232]
[1742178961198,6.4167,1908.6,1908.5,42.3243]
[1742178961400,8.95977,1908.6,1908.5,40.8]
[1742178962601,7.9118,1908.6,1908.5,40.8]
[1742178962801,8.95977,1908.6,1908.5,40.8]
[1742178963502,13.74137,1908.6,1908.5,40.8]
[1742178963803,14.71978623,1908.6,1908.5,40.8]
[1742178967806,14.80907667,1908.6,1908.5,40.8]
[1742178968001,17.30907667,1908.6,1908.5,40.8]
[1742178968907,14.80907667,1908.6,1908.5,40.8]
[1742178969106,14.71978623,1908.6,1908.5,40.8]
[1742178971910,17.21978623,1908.6,1908.5,40.8]
[1742178972504,17.30907611,1908.6,1908.5,40.8]
[1742178973606,17.21978623,1908.6,1908.5,40.8]
[1742178973907,14.71978623,1908.6,1908.5,40.8]